bitfinex-derivatives/quotes_SOLF0:USTF0_20250709
["timestamp","ask_amount","ask_price","bid_price","bid_amount"]
[1752056674078,4.58903771,152.74,152.7,2.41573771]
[1752056675680,8.96263771,152.73,152.71,6.5474]
[1752056675982,8.96263771,152.73,152.7,2.41573771]
[1752056676482,8.96263771,152.73,152.7,8.96333771]
[1752056676680,8.96263771,152.73,152.7,68.5476]
[1752056677281,8.96263771,152.73,152.71,6.5475]
[1752056678384,6.5469,152.73,152.71,6.5475]
[1752056679983,8.875,152.75,152.7,2.41573771]
[1752056680182,6.546,152.75,152.72,2.41573771]
[1752056680381,8.96173771,152.75,152.69,183.87963317]
[1752056680582,2.41573771,152.74,152.72,6.5469]
[1752056682286,2.41573771,152.74,152.73,6.5466]
[1752056682585,8.96173771,152.75,152.73,6.5466]
[1752056682789,2.41573771,152.74,152.71,62.04481078]
[1752056682982,2.41573771,152.73,152.71,0.04481078]
[1752056683383,8.96223771,152.74,152.71,6.59221078]
[1752056686690,6.5465,152.74,152.71,6.59221078]
[1752056686990,8.96223771,152.74,152.71,6.59221078]
[1752056687588,6.5467,152.73,152.71,6.59221078]
[1752056688490,8.96243771,152.73,152.71,6.59221078]
[1752056690483,6.5471,152.72,152.71,0.04481078]
[1752056690783,2.41573771,152.72,152.68,2.41573771]
[1752056691192,2.41573771,152.72,152.69,2.41573771]
[1752056691589,2.41573771,152.72,152.7,6.5477]
[1752056692389,2.41573771,152.72,152.71,6.5475]
[1752056693085,9.00865266,152.73,152.71,6.5475]
[1752056698189,6.59291495,152.73,152.71,6.5475]
[1752056698395,9.00865266,152.73,152.71,6.5475]
[1752056700389,9.00865266,152.73,152.7,8.96343771]
[1752056700792,6.5472,152.72,152.7,8.96343771]
[1752056701396,6.5476,152.71,152.69,8.96393771]
[1752056701697,2.41573771,152.71,152.67,2.41573771]
[1752056701894,6.5489,152.68,152.64,2.1534]
[1752056702094,2.41573771,152.67,152.64,2.41573771]
[1752056702495,2.41573771,152.67,152.63,2.41573771]
[1752056703196,8.96503771,152.67,152.65,6.5497]
[1752056704704,2.41573771,152.67,152.66,6.5497]
[1752056705797,2.41573771,152.67,152.63,2.41573771]
[1752056706301,2.41573771,152.67,152.65,6.5498]
[1752056707297,8.96503771,152.67,152.65,6.5498]
[1752056707495,2.41573771,152.67,152.63,2.41573771]
[1752056707703,8.96523771,152.67,152.63,2.41573771]
[1752056707894,2.41573771,152.66,152.63,2.41573771]
[1752056708600,2.41573771,152.66,152.65,6.5499]
[1752056709102,8.96523771,152.67,152.65,6.5499]
[1752056710500,2.41573771,152.67,152.65,6.5499]
[1752056711003,0.04199546,152.68,152.64,2.41573771]
[1752056711204,0.04199546,152.68,152.65,2.41573771]
[1752056712104,0.04199546,152.68,152.66,8.96503771]
[1752056712505,0.04199546,152.68,152.67,6.5492]
[1752056715601,2.45773317,152.68,152.66,6.5494]
[1752056716906,0.04199546,152.68,152.66,6.5494]
[1752056721106,9.00673317,152.68,152.66,6.5494]
[1752056721313,6.59099546,152.68,152.66,6.5494]
[1752056721513,2.45773317,152.68,152.66,6.5494]
[1752056722610,9.00653317,152.68,152.66,6.5494]
[1752056724116,6.59079546,152.68,152.66,6.5494]
[1752056724315,9.00653317,152.68,152.66,6.5494]
[1752056726718,6.59079546,152.68,152.66,6.5494]
[1752056726920,9.00653317,152.68,152.66,6.5494]
[1752056727512,6.59079546,152.68,152.66,6.5494]
[1752056727714,9.00653317,152.68,152.66,6.5494]
[1752056731529,8.96503771,152.67,152.65,6.5499]
[1752056745833,6.55,152.66,152.61,18.27229448]
[1752056746031,6.55,152.66,152.63,2.41573771]
[1752056746938,8.96573771,152.66,152.63,6.5507]
[1752056747235,4.36913201,152.65,152.63,6.5507]
[1752056747431,2.41573771,152.66,152.63,6.5507]
[1752056747637,13.33496067,152.65,152.62,6.5512]
[1752056747832,8.96613771,152.65,152.62,6.5512]
[1752056749232,4.36856624,152.64,152.62,6.5512]
[1752056749431,8.96613771,152.65,152.62,6.5512]
[1752056751435,8.96613771,152.65,152.62,6.5513]
[1752056752134,2.41573771,152.64,152.62,6.5513]
[1752056754138,2.41573771,152.64,152.63,6.551]
[1752056754740,9.01067838,152.65,152.63,6.551]
[1752056756340,2.46027838,152.65,152.63,6.551]
[1752056756735,2.46027838,152.65,152.61,12.2344308]
[1752056756942,2.41573771,152.64,152.6,14.65016851]
[1752056757439,2.41573771,152.64,152.62,6.5514]
[1752056757641,9.01057838,152.65,152.61,2.41573771]
[1752056757941,2.41573771,152.64,152.61,2.41573771]
[1752056758241,2.41573771,152.64,152.62,6.5514]
[1752056759142,0.04454067,152.65,152.63,2.41573771]
[1752056759642,0.04454067,152.65,152.63,8.96633771]
[1752056759843,0.04454067,152.65,152.63,2.41573771]
[1752056760141,0.04454067,152.65,152.64,6.5505]
[1752056761544,0.04454067,152.65,152.63,6.5508]
[1752056762544,0.04454067,152.65,152.64,6.5505]
[1752056763448,0.04454067,152.65,152.64,8.96623771]
[1752056763642,2.41573771,152.68,152.66,6.5495]
[1752056763843,4.35284852,152.67,152.66,6.5495]
[1752056765839,8.96453771,152.68,152.66,6.5495]
[1752056766244,2.41573771,152.67,152.66,6.5495]
[1752056767444,8.96453771,152.68,152.66,6.5495]
[1752056772346,8.96453771,152.68,152.65,8.96573771]
[1752056775252,8.96453771,152.68,152.65,6.55]
[1752056775452,6.5493,152.67,152.65,6.55]
[1752056775754,6.5493,152.67,152.65,8.96573771]
[1752056775950,6.5493,152.67,152.65,6.55]
[1752056778750,2.41573771,152.67,152.64,9.01603084]
[1752056779144,2.41573771,152.67,152.64,6.60029313]
[1752056779445,2.41573771,152.65,152.64,0.04989313]
[1752056779851,8.96583771,152.65,152.64,0.04989313]
[1752056787555,13.33379453,152.65,152.64,0.04989313]
[1752056792862,13.33353106,152.65,152.64,0.04989313]
[1752056803271,6.78343106,152.65,152.64,6.60049313]
[1752056804373,6.78343106,152.65,152.64,0.04989313]
[1752056805372,13.33353106,152.65,152.64,0.04989313]
[1752056806573,6.78343106,152.65,152.64,0.04989313]
[1752056809576,2.41573771,152.65,152.64,0.04989313]
[1752056809776,6.82947388,152.65,152.64,0.04989313]
[1752056813075,6.82947388,152.65,152.64,6.60049313]
[1752056825092,13.37957388,152.65,152.64,0.04989313]
[1752056825389,6.82947388,152.65,152.64,0.04989313]
[1752056826593,6.82947388,152.65,152.64,6.60049313]
[1752056828491,13.37957388,152.65,152.64,0.04989313]
[1752056829494,13.37957388,152.65,152.6,173.96161672]
[1752056829792,13.37957388,152.65,152.61,2.41573771]
[1752056829793,4.41373617,152.64,152.61,2.41573771]
[1752056829991,4.5211,152.69,152.6,192.2339112]
[1752056830294,6.75475456,152.68,152.64,2.41573771]
[1752056830494,2.41573771,152.68,152.64,2.41573771]
[1752056830694,2.45810239,152.68,152.64,2.41573771]
[1752056830895,2.45810239,152.68,152.66,6.5493]
[1752056832194,9.00700239,152.68,152.66,6.5493]
[1752056833395,6.59126468,152.68,152.66,6.5493]
[1752056833595,9.00700239,152.68,152.66,6.5493]
[1752056835192,2.41573771,152.67,152.66,6.5493]
[1752056836394,9.00700239,152.68,152.66,6.5493]
[1752056837996,6.5493,152.67,152.65,6.59913409]
[1752056838498,2.41573771,152.66,152.65,0.04913409]
[1752056838702,8.96543771,152.66,152.65,0.04913409]
[1752056845103,13.28286384,152.66,152.65,0.04913409]
[1752056846402,6.73316384,152.66,152.65,0.04913409]
[1752056851612,13.28286384,152.66,152.65,0.04913409]
[1752056852610,8.96543771,152.66,152.65,0.04913409]
[1752056859311,13.28210831,152.66,152.65,0.04913409]
[1752056859816,13.282232,152.66,152.65,0.04913409]
[1752056865624,8.96543771,152.66,152.65,0.04913409]
[1752056865921,13.28267222,152.66,152.65,0.04913409]
[1752056868426,10.86693451,152.66,152.65,0.04913409]
[1752056869027,6.73297222,152.66,152.65,6.59923409]
[1752056869623,13.28267222,152.66,152.65,6.59923409]
[1752056869819,13.28267222,152.66,152.65,0.04913409]
[1752056874631,13.28345195,152.66,152.65,0.04913409]
[1752056877533,8.96543771,152.66,152.65,0.04913409]
[1752056877832,13.28973482,152.66,152.65,0.04913409]
[1752056882535,13.212229,152.66,152.65,0.04913409]
[1752056886140,6.662529,152.66,152.65,6.59923409]
[1752056886337,4.24679129,152.66,152.65,6.59923409]
[1752056886639,2.45810239,152.68,152.65,0.04913409]
[1752056886839,9.00690239,152.68,152.66,6.5495]
[1752056894545,0.04236468,152.68,152.67,6.5493]
[1752056894743,2.41573771,152.7,152.67,2.41573771]
[1752056894943,4.27369643,152.69,152.68,6.5488]
[1752056896242,6.5484,152.69,152.67,6.5491]
[1752056897543,9.01245125,152.7,152.68,6.5488]
[1752056901054,8.96413771,152.69,152.67,6.5491]
[1752056901950,2.41573771,152.68,152.67,6.5491]
[1752056904254,8.96463771,152.68,152.66,6.5495]
[1752056906659,2.41573771,152.68,152.65,6.59883409]
[1752056907358,8.96483771,152.68,152.66,6.5496]
[1752056910061,8.96503771,152.67,152.65,6.59903409]
[1752056910861,8.96543771,152.66,152.65,0.04913409]
[1752056912259,2.41573771,152.66,152.65,0.04913409]
[1752056912762,2.41573771,152.66,152.65,6.59923409]
[1752056918264,6.549,152.68,152.65,6.59923409]
[1752056918468,2.41573771,152.66,152.65,6.59923409]
[1752056919466,2.41573771,152.68,152.66,6.5496]
[1752056919669,8.96433771,152.69,152.65,2.4648718]
[1752056920470,6.59671354,152.7,152.67,6.5489]
[1752056920671,2.41573771,152.69,152.67,6.5489]
[1752056921772,2.41573771,152.69,152.68,6.5488]
[1752056922368,2.46425125,152.7,152.68,6.5488]
[1752056922574,0.04851354,152.7,152.69,6.5484]
[1752056927479,0.04851354,152.7,152.69,8.96413771]
[1752056933477,2.41573771,152.77,152.69,20.68803219]
[1752056933781,2.41573771,152.77,152.74,2.41573771]
[1752056933981,8.96053771,152.78,152.74,2.41573771]
[1752056934373,8.96053771,152.78,152.76,6.5454]
[1752056934579,6.545,152.77,152.74,2.45749156]
[1752056934775,2.41573771,152.78,152.74,2.45749156]
[1752056934973,2.2599,152.81,152.74,2.45749156]
[1752056934974,2.41573771,152.77,152.75,6.5454]
[1752056936780,2.41573771,152.77,152.76,6.5454]
[1752056937085,8.96073771,152.77,152.74,0.04175385]
[1752056938688,8.96073771,152.77,152.75,6.5457]
[1752056938882,2.41573771,152.76,152.75,6.5457]
[1752056939991,2.41573771,152.76,152.74,6.58785385]
[1752056941189,8.96123771,152.76,152.74,6.58785385]
[1752056941698,2.41573771,152.75,152.74,0.04175385]
[1752056942591,8.96153771,152.75,152.74,0.04175385]
[1752056946497,2.41573771,152.75,152.74,0.04175385]
[1752056946697,2.41573771,152.75,152.74,6.58805385]
[1752056947493,6.5452,152.77,152.75,6.5457]
[1752056947494,2.41573771,152.76,152.75,6.5457]
[1752056972218,11.15459749,152.76,152.69,190.66815949]
[1752056972518,2.41573771,152.71,152.69,172.39586501]
[1752056972716,2.41573771,152.71,152.7,6.548]
[1752056976617,2.41573771,152.72,152.71,6.5476]
[1752056978217,21.11412435,152.72,152.63,18.27229448]
[1752056978522,2.41573771,152.65,152.61,2.41573771]
[1752056978816,2.41614086,152.66,152.65,6.55]
[1752056979021,9.14366845,152.75,152.63,2.41614086]
[1752056979223,2.41614086,152.68,152.63,2.41614086]
[1752056979727,2.41614086,152.68,152.66,6.5494]
[1752056980922,6.5484,152.69,152.66,6.5494]
[1752056981121,11.28596845,152.76,152.64,3.77379131]
[1752056981317,3.77379131,152.71,152.64,3.77379131]
[1752056981514,4.58104817,152.7,152.68,6.5487]
[1752056981714,10.32159131,152.71,152.68,6.5487]
[1752056981923,4.5809879,152.7,152.68,6.5487]
[1752056982125,10.32159131,152.71,152.68,6.5487]
[1752056983224,6.5478,152.71,152.68,6.5487]
[1752056983423,10.32159131,152.71,152.68,6.5487]
[1752056984725,3.77379131,152.73,152.66,3.77379131]
[1752056985222,10.32069131,152.73,152.7,6.5478]
[1752056986325,6.5464,152.74,152.68,3.77379131]
[1752056986825,6.5464,152.74,152.71,6.5473]
[1752056987329,6.5464,152.74,152.68,3.77379131]
[1752056988128,6.5464,152.74,152.71,6.5473]
[1752056988930,6.5464,152.74,152.72,6.5471]
[1752056990631,6.5464,152.74,152.71,6.5474]
[1752056992334,6.5469,152.73,152.7,6.5478]
[1752056992837,6.5469,152.73,152.71,6.5475]
[1752057001748,3.77379131,152.76,152.68,3.77379131]
[1752057001944,4.58856561,152.75,152.68,3.77379131]
[1752057002144,4.58856561,152.74,152.68,3.77379131]
[1752057002447,6.5461,152.75,152.72,6.5468]
[1752057002650,4.58888558,152.74,152.68,3.77379131]
[1752057002946,6.5461,152.75,152.72,6.5468]
[1752057003146,4.58888557,152.74,152.72,6.5468]
[1752057003342,6.5461,152.75,152.72,6.5468]
[1752057003549,4.58922686,152.74,152.72,6.5468]
[1752057003749,6.5461,152.75,152.72,6.5468]
[1752057003949,4.58922686,152.74,152.72,6.5468]
[1752057004148,6.5461,152.75,152.72,6.5468]
[1752057004449,11.13589112,152.74,152.72,6.5468]
[1752057004650,3.77379131,152.76,152.73,6.5467]
[1752057004850,4.58959112,152.75,152.73,6.5467]
[1752057005047,4.58959112,152.74,152.73,6.5467]
[1752057005745,4.58984624,152.74,152.73,6.5467]
[1752057008944,7.00318399,152.74,152.73,6.5467]
[1752057010350,4.58984624,152.74,152.73,6.5467]
[1752057010653,2.41333775,152.76,152.74,6.546]
[1752057010847,4.66744702,152.75,152.74,6.546]
[1752057011544,4.66760113,152.75,152.74,6.546]
[1752057016857,0.04939091,152.75,152.74,6.546]
[1752057017159,4.66868848,152.75,152.74,6.546]
[1752057021456,8.43870038,152.75,152.72,0.04618689]
[1752057021661,4.62369468,152.74,152.72,0.04618689]
[1752057021861,4.62369468,152.73,152.72,6.59298689]
[1752057022054,4.62369468,152.73,152.72,0.04618689]
[1752057022858,4.6237151,152.73,152.72,0.04618689]
[1752057027566,11.1704151,152.73,152.72,0.04618689]
[1752057033068,4.6237151,152.73,152.72,6.59328689]
[1752057034768,7.03749756,152.73,152.72,6.59328689]
[1752057036366,7.03749756,152.73,152.72,0.04618689]
[1752057036973,13.58419756,152.73,152.72,0.04618689]
[1752057044871,6.5473,152.72,152.7,6.5478]
[1752057045070,6.97190831,152.71,152.7,6.5478]
[1752057053383,2.41378246,152.71,152.7,6.5478]
[1752057060690,6.5469,152.73,152.71,6.5473]
[1752057060889,6.89244667,152.72,152.71,6.5473]
[1752057061487,6.89244667,152.72,152.7,6.5478]
[1752057061686,2.41378246,152.71,152.7,6.5478]
[1752057062189,6.89332551,152.71,152.7,6.5478]
[1752057062988,4.47954305,152.71,152.7,6.5478]
[1752057066494,2.41378246,152.72,152.7,6.5478]
[1752057066695,4.48251906,152.71,152.7,6.5478]
[1752057068595,2.41378246,152.72,152.71,6.5476]
[1752057068797,6.81917741,152.72,152.71,6.5476]
[1752057076608,4.40539495,152.72,152.71,6.5476]
[1752057076905,6.81917741,152.72,152.71,6.5476]
[1752057077608,4.40539495,152.72,152.71,6.5476]
[1752057077806,6.81917741,152.72,152.71,6.5476]
[1752057078302,6.80306979,152.72,152.71,6.5476]
[1752057081204,2.41378246,152.72,152.71,6.5476]
[1752057081409,6.80419128,152.72,152.71,6.5476]
[1752057082207,4.39040882,152.72,152.71,6.5476]
[1752057082407,6.80419128,152.72,152.71,6.5476]
[1752057084301,6.80498945,152.72,152.71,6.5476]
[1752057087209,6.8051484,152.72,152.71,6.5476]
[1752057087707,4.39136594,152.72,152.71,6.5476]
[1752057087912,6.8051484,152.72,152.71,6.5476]
[1752057096413,4.39136594,152.72,152.71,6.5476]
[1752057098816,4.39101852,152.72,152.71,6.5476]
[1752057109219,0.04176079,152.73,152.72,6.5471]
[1752057109423,2.41279165,152.77,152.72,2.41279165]
[1752057109721,2.41279165,152.77,152.75,6.5456]
[1752057110423,2.41279165,152.77,152.74,8.95879165]
[1752057110724,2.41279165,152.77,152.74,6.546]
[1752057111219,8.95799165,152.77,152.74,6.546]
[1752057112424,8.95799165,152.77,152.75,6.5458]
[1752057116329,2.41279165,152.77,152.75,6.5458]
[1752057116828,2.2746,152.81,152.75,2.41279165]
[1752057117026,2.41279165,152.79,152.75,2.41279165]
[1752057117227,8.95699165,152.79,152.75,2.41279165]
[1752057117929,8.95699165,152.79,152.76,6.5453]
[1752057118130,2.41279165,152.78,152.76,6.5453]
[1752057119131,6.5442,152.79,152.76,6.5453]
[1752057119328,2.41279165,152.78,152.76,6.5453]
[1752057119524,2.41279165,152.78,152.77,6.545]
[1752057120026,2.41279165,152.78,152.75,2.41279165]
[1752057120226,2.41279165,152.78,152.76,6.5453]
[1752057120426,2.41279165,152.78,152.75,2.41279165]
[1752057121028,603.23832731,152.89,152.76,2.41279165]
[1752057121333,4.30369408,152.83,152.79,6.5439]
[1752057121528,2.41279165,152.81,152.79,6.5439]
[1752057122233,8.95609165,152.81,152.79,6.5439]
[1752057122534,2.41279165,152.8,152.78,6.58617127]
[1752057123134,6.5433,152.81,152.78,6.58617127]
[1752057123336,8.95609165,152.81,152.78,6.58617127]
[1752057123532,8.95609165,152.81,152.79,6.5441]
[1752057123829,8.95609165,152.81,152.78,0.04167127]
[1752057124539,8.95609165,152.81,152.78,6.58617127]
[1752057125737,8.95689165,152.79,152.78,0.04167127]
[1752057127136,6.5452,152.77,152.73,2.41279165]
[1752057127327,2.41279165,152.76,152.72,2.41279165]
[1752057127526,2.41279165,152.76,152.74,6.546]
[1752057127837,2.41279165,152.76,152.72,2.41279165]
[1752057128132,2.41279165,152.76,152.74,6.5462]
[1752057128332,2.46195969,152.76,152.74,6.5462]
[1752057128635,0.04916804,152.76,152.74,6.5462]
[1752057128837,0.04916804,152.76,152.75,6.5458]
[1752057129734,0.04916804,152.76,152.74,6.546]
[1752057129925,2.46195969,152.76,152.74,6.546]
[1752057130131,9.00745969,152.76,152.74,6.546]
[1752057131636,2.46195969,152.76,152.74,6.546]
[1752057133134,2.46195969,152.76,152.75,6.5458]
[1752057133536,0.04916804,152.76,152.75,6.5458]
[1752057133939,11.33728473,152.84,152.77,6.5449]
[1752057134137,2.41279165,152.79,152.77,6.5449]
[1752057134644,8.95719165,152.79,152.76,6.5452]
[1752057134940,2.41279165,152.79,152.75,2.41279165]
[1752057135240,2.41279165,152.79,152.76,0.04817865]
[1752057135540,8.95689165,152.79,152.76,0.04817865]
[1752057135840,2.41279165,152.78,152.76,0.04817865]
[1752057136441,2.41279165,152.78,152.77,6.545]
[1752057137132,2.45910498,152.79,152.77,6.545]
[1752057139741,0.04631333,152.79,152.77,6.545]
[1752057139945,2.45910498,152.79,152.77,6.545]
[1752057141445,0.04631333,152.79,152.77,6.545]
[1752057141647,2.45910498,152.79,152.77,6.545]
[1752057143845,0.04631333,152.79,152.77,6.545]
[1752057145856,6.59051333,152.79,152.77,6.545]
[1752057146053,9.00330498,152.79,152.77,6.545]
[1752057148458,2.45910498,152.79,152.76,0.04817865]
[1752057149155,2.45910498,152.79,152.77,6.5448]
[1752057149654,0.04631333,152.79,152.77,6.5448]
[1752057149858,2.45910498,152.79,152.77,6.5448]
[1752057150154,2.45910498,152.79,152.76,0.04817865]
[1752057150663,9.00340498,152.79,152.77,6.5446]
[1752057155067,2.45910498,152.79,152.77,6.5446]
[1752057157663,0.04631333,152.79,152.78,6.5446]
[1752057158964,0.04631333,152.79,152.78,8.95739165]
[1752057160066,0.04631333,152.79,152.78,6.5446]
[1752057160267,0.04631333,152.79,152.78,8.95739165]
[1752057160466,0.04631333,152.79,152.78,6.5446]
[1752057160768,0.04631333,152.79,152.78,8.95739165]
[1752057163367,6.5425,152.83,152.78,2.41279165]
[1752057163567,4.2840416,152.82,152.79,2.41279165]
[1752057163762,8.95529165,152.83,152.79,2.41279165]
[1752057163968,4.2840416,152.82,152.8,6.5435]
[1752057164169,2.41279165,152.82,152.8,6.5435]
[1752057165672,8.95559165,152.82,152.8,6.5435]
[1752057165874,2.41279165,152.81,152.79,0.04585184]
[1752057166171,2.41279165,152.8,152.79,0.04585184]
[1752057167471,2.41279165,152.8,152.79,6.58995184]
[1752057170672,6.543,152.82,152.79,6.58995184]
[1752057170970,2.41279165,152.8,152.79,6.58995184]
[1752057176272,6.543,152.82,152.79,6.58995184]
[1752057176474,2.41279165,152.81,152.79,6.58995184]
[1752057178067,8.95609165,152.81,152.79,6.58995184]
[1752057178270,2.41279165,152.8,152.79,0.04585184]
[1752057178872,8.95609165,152.81,152.79,0.04585184]
[1752057179174,2.41279165,152.81,152.79,6.58975184]
[1752057179970,2.41279165,152.81,152.8,6.5437]
[1752057180671,8.95579165,152.82,152.8,6.5437]
[1752057180876,2.41279165,152.83,152.81,6.5433]
[1752057181078,4.20478428,152.82,152.79,2.45864349]
[1752057181277,8.95539165,152.83,152.8,6.5435]
[1752057181478,4.20483311,152.82,152.8,6.5435]
[1752057181678,8.95539165,152.83,152.8,6.5435]
[1752057181977,4.20469952,152.82,152.8,6.5435]
[1752057182276,8.95539165,152.83,152.8,6.5435]
[1752057182476,4.204531,152.82,152.8,6.5435]
[1752057182677,8.95539165,152.83,152.8,6.5435]
[1752057184081,8.95539165,152.83,152.81,6.5432]
[1752057184874,2.41279165,152.82,152.8,6.5435]
[1752057186483,2.41279165,152.82,152.81,6.5433]
[1752057186779,2.41279165,152.82,152.79,0.04585184]
[1752057186978,2.41279165,152.82,152.8,6.5434]
[1752057187680,2.41279165,152.82,152.81,6.5433]
[1752057189585,2.41279165,152.83,152.82,6.5428]
[1752057189779,6.62480182,152.83,152.79,2.45864349]
[1752057189973,2.41279165,152.83,152.79,2.45864349]
[1752057190582,2.41279165,152.83,152.81,6.5431]
[1752057191584,8.95519165,152.83,152.81,6.5431]
[1752057194379,2.41279165,152.83,152.79,2.45864349]
[1752057194887,2.41279165,152.83,152.81,6.5431]
[1752057199588,8.95529165,152.83,152.81,6.5431]
[1752057199887,2.41279165,152.82,152.8,6.5434]
[1752057201990,2.41279165,152.82,152.81,6.5433]
[1752057203189,8.95529165,152.83,152.81,6.5433]
[1752057210296,2.41279165,152.83,152.81,6.5433]
[1752057210698,6.5422,152.84,152.81,6.5433]
[1752057210898,11.19512785,152.83,152.81,6.5433]
[1752057211197,2.41279165,152.83,152.81,6.5433]
[1752057212702,6.5422,152.84,152.81,6.5433]
[1752057212901,11.20012026,152.83,152.81,6.5433]
[1752057213092,2.41279165,152.83,152.81,6.5433]
[1752057214604,2.41050719,152.83,152.81,6.5433]
[1752057216301,2.41050719,152.83,152.82,6.5428]
[1752057216504,6.5406,152.88,152.79,18.31814632]
[1752057216702,8.94965984,152.88,152.84,2.40905984]
[1752057217001,2.40905984,152.88,152.84,2.45227103]
[1752057217404,2.40905984,152.88,152.86,6.5408]
[1752057217604,8.94945984,152.88,152.84,2.45227103]
[1752057217796,2.40905984,152.87,152.84,0.04321119]
[1752057218098,2.40905984,152.86,152.84,0.04321119]
[1752057218298,2.40905984,152.85,152.84,0.04321119]
[1752057219305,8.95065984,152.85,152.84,0.04321119]
[1752057223304,6.5416,152.85,152.84,0.04321119]
[1752057223508,8.95065984,152.85,152.84,0.04321119]
[1752057239423,6.5416,152.85,152.84,0.04321119]
[1752057239719,8.95065984,152.85,152.84,0.04321119]
[1752057240122,6.5416,152.85,152.84,0.04321119]
[1752057240322,8.95065984,152.85,152.84,0.04321119]
[1752057241126,6.5416,152.85,152.84,0.04321119]
[1752057241318,8.95065984,152.85,152.84,0.04321119]
[1752057243030,2.40905984,152.88,152.84,2.45227103]
[1752057243225,2.40905984,152.87,152.84,0.04321119]
[1752057243423,2.1798,152.89,152.84,0.04321119]
[1752057243424,6.5416,152.85,152.84,0.04321119]
[1752057243620,2.40905984,152.86,152.84,0.04321119]
[1752057244121,8.95045984,152.86,152.84,0.04321119]
[1752057245424,2.40905984,152.86,152.84,6.58511119]
[1752057245923,6.5409,152.87,152.84,6.58511119]
[1752057245924,8.94995984,152.87,152.84,6.58511119]
[1752057246226,6.5414,152.86,152.84,0.04321119]
[1752057246416,8.95045984,152.86,152.84,0.04321119]
[1752057246918,6.5416,152.85,152.84,0.04321119]
[1752057247123,2.40905984,152.86,152.84,0.04321119]
[1752057247323,2.1798,152.89,152.84,0.04321119]
[1752057247525,8.95055984,152.86,152.84,0.04321119]
[1752057248929,2.40905984,152.85,152.84,0.04321119]
[1752057249831,8.95055984,152.86,152.84,0.04321119]
[1752057250331,6.5416,152.85,152.84,0.04321119]
[1752057251930,8.95065984,152.85,152.84,0.04321119]
[1752057252130,6.5431,152.82,152.78,2.40905984]
[1752057252323,2.40905984,152.81,152.77,170.49255002]
[1752057252525,2.40905984,152.81,152.79,6.5438]
[1752057253229,2.40905984,152.81,152.8,6.5437]
[1752057253429,2.40905984,152.82,152.78,2.40905984]
[1752057253728,6.5426,152.83,152.77,168.08349018]
[1752057253729,8.95165984,152.83,152.8,6.5436]
[1752057254231,6.5426,152.83,152.8,2.40905984]
[1752057254432,8.95165984,152.83,152.8,8.95255984]
[1752057255534,2.40905984,152.85,152.81,2.40905984]
[1752057255737,2.40905984,152.84,152.81,2.40905984]
[1752057255934,8.95125984,152.84,152.81,8.95205984]
[1752057257534,8.95125984,152.84,152.81,6.543]
[1752057259533,8.95155984,152.83,152.81,6.543]
[1752057261536,6.5422,152.84,152.81,6.543]
[1752057261742,2.40905984,152.83,152.81,6.543]
[1752057263440,2.40905984,152.83,152.8,2.40905984]
[1752057263745,6.5422,152.84,152.8,2.40905984]
[1752057264043,2.40905984,152.83,152.8,2.40905984]
[1752057264545,6.5422,152.84,152.82,6.5428]
[1752057264740,2.40905984,152.83,152.82,6.5428]
[1752057265140,8.95125984,152.84,152.82,6.5428]
[1752057265444,2.40905984,152.84,152.82,6.5428]
[1752057266845,8.95105984,152.84,152.82,6.5428]
[1752057267045,8.95105984,152.84,152.81,6.5431]
[1752057267551,2.40905984,152.83,152.81,6.5431]
[1752057268046,6.542,152.84,152.81,6.5431]
[1752057268247,2.40905984,152.83,152.81,6.5431]
[1752057269348,6.542,152.84,152.82,6.5428]
[1752057269549,2.40905984,152.83,152.82,6.5428]
[1752057269750,6.542,152.84,152.82,6.5428]
[1752057269950,2.40905984,152.83,152.82,6.5428]
[1752057271151,8.95145984,152.83,152.82,6.5428]
[1752057271650,2.40905984,152.83,152.82,6.5428]
[1752057272151,6.5422,152.84,152.82,6.5428]
[1752057272350,8.95125984,152.84,152.82,6.5428]
[1752057273551,6.69256689,152.83,152.81,0.04884735]
[1752057273751,2.40905984,152.82,152.81,0.04884735]
[1752057274557,8.95185984,152.82,152.81,0.04884735]
[1752057274752,2.40905984,152.82,152.81,0.04884735]
[1752057275251,2.40905984,152.82,152.81,6.59214735]
[1752057275857,8.95185984,152.82,152.81,0.04884735]
[1752057276557,2.40905984,152.82,152.81,0.04884735]
[1752057278056,2.40905984,152.82,152.81,6.59214735]
[1752057278257,8.95115984,152.84,152.81,0.04884735]
[1752057278550,6.5421,152.84,152.81,2.45790719]
[1752057279555,6.5421,152.84,152.81,9.00090719]
[1752057279855,8.95115984,152.84,152.81,6.59184735]
[1752057280754,2.40905984,152.84,152.81,6.59184735]